Cogmind - Beta 16 @@@ ROGUE MODE // 2026.01.09 @ 22:26:12 Player: c4-BRK Result: Destroyed by Y-54 Guardian with Gatling Laser Performance ------------- Evolutions (4) 2000 Regions Visited (6) 1200 Robots Destroyed (26) 130 Value Destroyed (1297) 1297 Prototype IDs (1) 20 Alien Tech Used (0) 0 Bonus (0) 0 TOTAL SCORE: 4647 Bonus ------- None Cogmind --------- Core Integrity 0/850 Matter 300/300 Energy 99/100 System Corruption 5% Temperature Cool (12) Movement Core (50) Location -6/Factory Parts ------- > --- POWER (2) -------- (None) > --- PROPULSION (4) --- (None) > --- UTILITY (6) ------ (None) > --- WEAPON (3) ------- (None) > --- INVENTORY (5) ---- Improved Gravmag System Recoil Stabilizer Force Field Proton Cannon Minigun Peak State ------------ > --- POWER ------------ Micro Nuclear Core > --- PROPULSION ------- Improved Medium Treads > --- UTILITY ---------- Large Storage Unit Compact Matter Pod Kinecellerator Improved Light Armor Plating Hacking Suite > --- WEAPON ----------- Force Rifle Heavy Plasma Cannon Heavy Machine Gun > --- INVENTORY -------- Wheel Improved Gravmag System Recoil Stabilizer Force Field Proton Cannon Proton Cannon Minigun [Rating: 41] Favorites ----------- Power Ion Engine Engine Ion Engine Power Core Light Nuclear Core Propulsion Wheel Treads Improved Medium Treads Leg Improved Aluminum Leg Wheel Wheel Flight Unit Xenon Bombardment Thruster Utility Improved Heat Sink Device Improved Heat Sink Storage Small Storage Unit Hackware Hacking Suite Protection Hardened Light Armor Plating Weapon Medium Laser Energy Gun Medium Laser Energy Cannon Heavy Plasma Cannon Ballistic Gun Heavy Machine Gun Ballistic Cannon Advanced Assault Cannon Build | -11 -10 -9 -9 -8 -7 -6 ------- Run | Yrd Mat Mat Min Mat Fac Fac Slots Evolved 8 | . . 2 . 2 2 2 Power 1 | . . . . 1 . . Propulsion 2 | . . . . 1 . 1 Utility 4 | . . 2 . . 2 . Weapon 1 | . . . . . . 1 Parts Attached 61 | 6 3 4 6 13 14 15 Power 9 | 1 . . 1 4 1 2 Engine 2 | 1 . . 1 . . . Core 7 | . . . . 4 1 2 Reactor . | . . . . . . . Propulsion 16 | 2 2 1 2 1 5 3 Treads 2 | . . . . . 1 1 Leg 2 | . 2 . . . . . Wheel 10 | 2 . 1 2 1 2 2 Hover . | . . . . . . . Flight 2 | . . . . . 2 . Utility 19 | 1 1 2 1 5 5 4 Device 8 | . . 1 1 3 2 1 Storage 4 | 1 . . . 1 . 2 Processor . | . . . . . . . Hackware 1 | . . . . . 1 . Protection 6 | . 1 1 . 1 2 1 Artifact . | . . . . . . . Weapon 17 | 2 . 1 2 3 3 6 Energy Gun 8 | 2 . 1 2 . 1 2 Energy Cannon 4 | . . . . . 1 3 Ballistic Gun 4 | . . . . 3 . 1 Ballistic Cannon 1 | . . . . . 1 . Launcher . | . . . . . . . Special Weapon . | . . . . . . . Impact Weapon . | . . . . . . . Slashing Weapon . | . . . . . . . Piercing Weapon . | . . . . . . . Special Melee Weapon . | . . . . . . . Unidentified Prototypes 1 | . . . . . . 1 Parts Lost 43 | . . . 5 12 11 15 Power 8 | . . . . 3 3 2 Propulsion 11 | . . . 2 2 4 3 Utility 13 | . . . 2 4 1 6 Weapon 11 | . . . 1 3 3 4 Highest Loss Streak 8 | . . . 5 8 7 7 To Critical Strikes . | . . . . . . . Average Backups 4 | . 1 1 3 3 3 6 Power . | . . . . . . . Propulsion 1 | . . 1 1 1 1 1 Utility 1 | . 1 . . 1 . 1 Weapon 1 | . . . . . 1 3 Tool/Special . | . . . . . . . Unused Backups 5 | . . . . . 2 3 Power . | . . . . . . . Propulsion 2 | . . . . . 1 1 Utility 1 | . . . . . . 1 Weapon 2 | . . . . . 1 1 Tool/Special . | . . . . . . . Average Slot Usage (%) 72 | . 98 98 96 60 84 44 Engine 4 | . 14 11 11 3 . . Core 3 | . . . . 5 10 . Treads 2 | . . . . . 4 4 Wheel 10 | . 27 22 20 9 8 . Device 13 | . . 9 11 17 24 6 Storage 8 | . 14 11 11 9 6 7 Hackware 2 | . . . . . 1 5 Protection 9 | . 13 22 19 1 9 4 Energy Gun 9 | . 28 22 22 9 6 . Energy Cannon 3 | . . . . . 1 8 Ballistic Gun 2 | . . . . 4 2 4 Peak Build Rating 41 | 6 10 13 13 17 35 41 Average Rating 20 | 3 7 12 12 12 27 27 On Entrance 8 | . 6 8 13 11 17 4 Avg Prop Armor Cover (%) 11 | . . . . . 11 . Naked Turns 126 | . . . . . . 126 Heaviest Build 54 | 13 18 24 25 29 38 54 Greatest Support 30 | 26 26 26 26 26 26 30 Greatest Overweight (x) 12 | . . . 4 8 12 6 Average Overweight (x) 1 | . . . . 1 2 . Largest Inventory Capacity 15 | 8 8 8 8 10 10 15 Average Capacity 9 | 6 8 8 8 9 9 11 Most Carried 8 | 5 2 5 5 7 8 8 Average Carried 4 | . 1 1 3 4 3 6 Final Capacity 10 | 8 8 8 8 10 5 5 Final Carried 5 | . 2 5 3 4 5 5 Class Distribution -------------------- 64% | Mutant 19% | Gunner 15% | Scavenger-Mutant Dominant Class ---------------- Mutant | -10/Materials Mutant | -9/Materials Mutant | -9/Mines Mutant | -8/Materials Scavenger-Mutant | -7/Factory Gunner | -6/Factory Resources | -11 -10 -9 -9 -8 -7 -6 ----------- Run | Yrd Mat Mat Min Mat Fac Fac Matter Collected 1073 | 218 92 . 109 180 113 361 Remotely . | . . . . . . . Salvage Created 1085 | . 78 . 163 222 71 551 Parts 55 | . 4 . 7 13 . 31 Haulers Intercepted . | . . . . . . . Recyclers Shooed 2 | . . . . . . 2 Parts Field Recycled . | . . . . . . . Retrieved Matter . | . . . . . . . Parts Self-Destructed . | . . . . . . . Prevented . | . . . . . . . Parts Restored . | . . . . . . . Kills | -11 -10 -9 -9 -8 -7 -6 ------- Run | Yrd Mat Mat Min Mat Fac Fac Combat Hostiles Destroyed 22 | . 2 . 4 5 1 10 Guns 15 | . 2 . 3 5 . 5 Cannons 1 | . . . . . . 1 AOE 4 | . . . . . 1 3 Classes Destroyed 9 | . 1 . . 1 3 4 Worker 1 | . . . . . . 1 Recycler 1 | . . . . . . 1 Mechanic 1 | . . . . . 1 . Watcher 1 | . . . . . 1 . Swarmer 4 | . . . . . . 4 Grunt 13 | . 2 . 4 4 . 3 Sentry 1 | . . . . . . 1 Hunter 1 | . . . . 1 . . Programmer 3 | . . . . . 1 2 Best Kill Streak 5 | . 2 . 3 2 1 5 Combat Bots Only 4 | . 2 . 3 2 1 4 Max Kills in Single Turn 3 | . 1 . 1 1 1 3 Gunslinging . | . . . . . . . Exploded 3 | . . . . . 1 3 Melee . | . . . . . . . Uniques/NPCs Destroyed . | . . . . . . . Combat | -11 -10 -9 -9 -8 -7 -6 -------- Run | Yrd Mat Mat Min Mat Fac Fac Hostile Shots Fired 628 | . 16 4 64 161 156 227 Missed 218 | . 5 1 14 49 59 90 Hits 410 | . 11 3 50 112 97 137 Projectile 410 | . 11 3 50 112 97 137 Critical Strikes 13 | . . . 1 8 1 3 Damage Taken 6521 | . 151 40 642 1562 1949 2177 Core 1963 | . 29 . 54 330 697 853 Absorbed by Shields . | . . . . . . . Redirected to Shielding 134 | . . . . . 69 65 Regen/Repaired (Parts) 29 | . . . . 29 . . Core Remaining (%) 62 | 100 88 . 86 40 . . Volleys Fired 122 | . 10 . 23 41 21 27 Largest 3 | . 2 . 2 2 2 3 Hottest 210 | . 90 . 100 115 126 210 Shots Fired 208 | . 20 . 46 57 30 55 Gun 170 | . 20 . 46 57 10 37 Cannon 38 | . . . . . 20 18 Launcher . | . . . . . . . Special . | . . . . . . . Kinetic 74 | . . . . 36 19 19 Thermal 126 | . 20 . 46 21 4 35 Explosive . | . . . . . . . Electromagnetic 8 | . . . . . 7 1 Robot Hit Streak 8 | . 5 . 8 6 6 4 Robot Miss Streak 5 | . 2 . 3 4 2 5 Penetration Max . | . . . . . . . Secondary Targets 3 | . 1 . 1 . . 1 Max Gunslinging Chain 1 | . 1 . 1 . . 1 Shots Hit Robots 125 | . 14 . 26 41 15 29 Core Hits 61 | . 5 . 9 16 10 21 Critical Kills 1 | . . . . . . 1 Critical Parts Destroyed 1 | . . . . 1 . . Critical Strikes 8 | . 1 . 2 1 3 1 Burn 4 | . 1 . 2 . 1 . Destroy 2 | . . . . 1 . 1 Blast 1 | . . . . . 1 . Corrupt 1 | . . . . . 1 . Melee Attacks . | . . . . . . . Impact . | . . . . . . . Slashing . | . . . . . . . Piercing . | . . . . . . . Sneak Attacks . | . . . . . . . Combat Hostiles . | . . . . . . . Follow-up Attacks . | . . . . . . . Damage Inflicted 3274 | . 173 . 368 664 760 1309 Guns 1869 | . 173 . 368 664 99 565 Cannons 647 | . . . . . 274 373 Explosions 718 | . . . . . 387 331 Melee . | . . . . . . . Ramming 40 | . . . . . . 40 Kinetic 976 | . . . . 497 241 238 Thermal 2143 | . 173 . 368 167 435 1000 Explosive . | . . . . . . . Electromagnetic 115 | . . . . . 84 31 Impact . | . . . . . . . Slashing . | . . . . . . . Piercing . | . . . . . . . Highest Corruption 5 | . . . . . 3 5 Average Corruption 3 | . . . . . 2 3 Corruption Purged . | . . . . . . . Corruption Blocked . | . . . . . . . Effects 12 | . . . . . . 12 Message Errors 4 | . . . . . . 4 Matter Fused 1 | . . . . . . 1 Heat Flow Errors 2 | . . . . . . 2 Energy Discharges 2 | . . . . . . 2 Data Loss (minor) 1 | . . . . . . 1 Data Loss (major) 1 | . . . . . . 1 Misfires 1 | . . . . . . 1 Overload Shots . | . . . . . . . Overflow Damage 244 | . . . . . 229 15 Projectiles 18 | . . . . . 17 1 Explosions 226 | . . . . . 212 14 Melee . | . . . . . . . Knockbacks 1 | . . . . . 1 . Impact . | . . . . . . . Kinetic 1 | . . . . . 1 . Secondary . | . . . . . . . Self-Inflicted Damage 762 | . . . . . 543 219 Shots 9 | . . . . . 7 2 Rammed 11 | . . . . . . 11 Targets Rammed 11 | . . . . . . 11 Kicked . | . . . . . . . Crushed . | . . . . . . . Highest Temperature 413 | . 240 . 279 92 40 413 Average Temperature 118 | . 100 . 131 31 24 156 Received Heat Transfer 1824 | . 87 21 372 657 54 633 Effects 3 | . . . . . . 3 Shutdowns 1 | . . . . . . 1 Short Circuit 1 | . . . . . . 1 Damage (minor) 1 | . . . . . . 1 Siege Activations . | . . . . . . . Martial Activations . | . . . . . . . Shielding Activations . | . . . . . . . Robots Disrupted . | . . . . . . . Combat Hostiles . | . . . . . . . Robots Corrupted . | . . . . . . . Combat Hostiles . | . . . . . . . Parts Fried 1 | . . . . . 1 . Impact Corruptions . | . . . . . . . Robots Melted 2 | . . . 1 . . 1 Combat Hostiles 2 | . . . 1 . . 1 Parts Melted 6 | . . . 3 . . 3 Heat Transferred 3829 | . 508 . 1234 433 473 1181 Parts Sabotaged . | . . . . . . . Parts Stolen . | . . . . . . . Parts Stripped . | . . . . . . . Power Chain Reactions 1 | . . . . . 1 . Alert | -11 -10 -9 -9 -8 -7 -6 ------- Run | Yrd Mat Mat Min Mat Fac Fac Maximum Alert Level . | . . . . . . . Low Security (%) 100 | 100 100 100 100 100 100 100 Level 1 . | . . . . . . . Level 2 . | . . . . . . . Level 3 . | . . . . . . . Level 4 . | . . . . . . . Level 5 . | . . . . . . . High Security . | . . . . . . . Max Security . | . . . . . . . Peak Influence 193 | . 50 20 50 50 177 193 Initial 60 | . . 20 . 7 . 60 Average 33 | . 8 9 4 6 42 66 Influence Increases 1399 | . 68 . 122 112 464 633 Destroy 0b10 Robot/C 440 | . 40 . 80 100 20 200 Destroy 0b10 Robot/NC 20 | . . . . . 10 10 Destroy Leader 112 | . 20 . 20 10 12 50 Successful Hack 17 | . 8 . 7 2 . . Disable Machine 405 | . . . . . 285 120 Destroy Structure 135 | . . . . . 107 28 Lose Combat Pursuer 270 | . . . 15 . 30 225 Influence Decreases 1224 | . 18 50 101 133 341 581 Entered New Map 107 | . . 30 . 14 . 63 Time Decay 802 | . 18 20 61 89 231 383 Lost Part 315 | . . . 40 30 110 135 Squads Dispatched 11 | . 1 . . 2 4 4 Investigation 1 | . . . . . 1 . Extermination 4 | . . . . . 2 2 Reinforcement 6 | . 1 . . 2 1 2 Assault . | . . . . . . . Garrison . | . . . . . . . Intercept . | . . . . . . . Searches Triggered . | . . . . . . . Construction Impeded 1 | . . . . . . 1 Haulers Reinforced 1 | . . . . . . 1 Active Scanning Responses . | . . . . . . . Cargo Convoy Interrupts 1 | . . . . . 1 . Stealth | -11 -10 -9 -9 -8 -7 -6 --------- Run | Yrd Mat Mat Min Mat Fac Fac Distress Signals 3 | . . . . 2 1 . Communications Jammed . | . . . . . . . Distress Signals . | . . . . . . . Times Spotted 97 | . 6 4 5 20 26 36 Peak Tracking Total 13 | . 4 4 3 6 13 8 Tactical Retreats 15 | . . . 1 4 3 7 ECM-based Alert Blocks 8 | . . . . 6 2 . Traps | -11 -10 -9 -9 -8 -7 -6 ------- Run | Yrd Mat Mat Min Mat Fac Fac Traps Triggered 3 | . . . . 1 . 2 Indirectly . | . . . . . . . Trap Hack Attempts . | . . . . . . . Triggered . | . . . . . . . Disarmed . | . . . . . . . Reprogrammed . | . . . . . . . Reused . | . . . . . . . Traps Extracted . | . . . . . . . Installed . | . . . . . . . Triggered . | . . . . . . . Machines | -11 -10 -9 -9 -8 -7 -6 ---------- Run | Yrd Mat Mat Min Mat Fac Fac Machines Disabled 27 | . . . . . 19 8 Max in Single Turn 8 | . . . . . 8 8 Machines Repaired . | . . . . . . . Machines Dismantled . | . . . . . . . Machines Sabotaged . | . . . . . . . Overloaded Fab Kills . | . . . . . . . Hacking | -11 -10 -9 -9 -8 -7 -6 --------- Run | Yrd Mat Mat Min Mat Fac Fac Machines Accessed 9 | . 1 . 1 2 3 2 Terminals 4 | . 1 . 1 . 1 1 Fabricators 1 | . . . . . 1 . Repair Stations 1 | . . . . 1 . . Recycling Units 1 | . . . . . . 1 Scanalyzers 1 | . . . . 1 . . Garrison Access 1 | . . . . . 1 . Total Hacks 26 | . 1 . 5 10 6 4 Successful 13 | . 1 . 3 7 2 . Failed 12 | . . . 2 2 4 4 Catastrophic 2 | . . . . . 2 . Database Lockouts 1 | . . . . 1 . . Manual 4 | . 1 . . . . 3 Terminals 11 | . 1 . 5 . 2 3 Fabricators 2 | . . . . . 2 . Repair Stations 2 | . . . . 2 . . Recycling Units 1 | . . . . . . 1 Scanalyzers 8 | . . . . 8 . . Garrison Access 2 | . . . . . 2 . Terminal Hacks 5 | . 1 . 3 . 1 . Record 3 | . . . 3 . . . Open DSF 1 | . . . . . 1 . Registered Components 1 | . 1 . . . . . Fabricator Hacks 1 | . . . . . 1 . Network Status 1 | . . . . . 1 . Repair Station Hacks 2 | . . . . 2 . . Scan Component 1 | . . . . 1 . . Repair 1 | . . . . 1 . . Recycling Unit Hacks . | . . . . . . . Scanalyzer 5 | . . . . 5 . . Insert Component 1 | . . . . 1 . . Analyze 1 | . . . . 1 . . Retrieve Study 3 | . . . . 3 . . Garrison Access Hacks . | . . . . . . . Unauthorized Hacks . | . . . . . . . Terminals . | . . . . . . . Fabricators . | . . . . . . . Repair Stations . | . . . . . . . Recycling Units . | . . . . . . . Scanalyzers . | . . . . . . . Garrison Access . | . . . . . . . Data Cores Recovered . | . . . . . . . Used . | . . . . . . . Hacking Detections 6 | . . . 1 1 2 2 Full Trace Events 2 | . . . . 1 1 . Feedback Events . | . . . . . . . Feedback Blocked . | . . . . . . . Robot Schematics Acquired . | . . . . . . . Robots Built . | . . . . . . . Authchips . | . . . . . . . Time . | . . . . . . . Total Robot Build Rating . | . . . . . . . Part Schematics Acquired 1 | . . . . 1 . . Parts Built . | . . . . . . . Authchips . | . . . . . . . Time . | . . . . . . . Total Part Build Rating . | . . . . . . . Part Studies Acquired 3 | . . . . 3 . . Parts Repaired 1 | . . . . 1 . . Time 26 | . . . . 26 . . Parts Recycled . | . . . . . . . Recycled Matter . | . . . . . . . Retrieved Matter . | . . . . . . . Retrieved Components . | . . . . . . . Parts Scanalyzed 1 | . . . . 1 . . Part Schematics Acquired 1 | . . . . 1 . . Parts Damaged . | . . . . . . . Bothacking | -11 -10 -9 -9 -8 -7 -6 ------------ Run | Yrd Mat Mat Min Mat Fac Fac Used RIF Installer . | . . . . . . . Robots Hacked . | . . . . . . . Non-combat . | . . . . . . . Combat . | . . . . . . . Robot Hacks Applied . | . . . . . . . Relay Couplers Released . | . . . . . . . Fabnet Peak Effective % . | . . . . . . . Robots Rewired . | . . . . . . . Allies Hacked . | . . . . . . . Hacks Repelled . | . . . . . . . Allies | -11 -10 -9 -9 -8 -7 -6 -------- Run | Yrd Mat Mat Min Mat Fac Fac Total Allies . | . . . . . . . Largest Group . | . . . . . . . Highest-Rated Group . | . . . . . . . Highest-Rated Ally . | . . . . . . . Total Orders . | . . . . . . . Ally Attacks . | . . . . . . . Total Damage . | . . . . . . . Kills . | . . . . . . . Allies Corrupted . | . . . . . . . Allies Melted . | . . . . . . . Intel | -11 -10 -9 -9 -8 -7 -6 ------- Run | Yrd Mat Mat Min Mat Fac Fac Active Infowar (turns) 980 | . . . 85 329 566 . Sensors 147 | . . . . 147 . . ECM 961 | . . . 85 310 566 . Robot Analysis Total . | . . . . . . . Derelict Logs Recovered . | . . . . . . . Drone Launches . | . . . . . . . Drone Recoveries . | . . . . . . . Exploration | -11 -10 -9 -9 -8 -7 -6 ------------- Run | Yrd Mat Mat Min Mat Fac Fac Turns Passed 3463 | 43 130 60 905 419 765 1141 Spaces Moved 1827 | 42 91 54 200 240 571 629 Core 319 | 16 . . 3 14 38 248 Treads 361 | . . . . . . 361 Legs . | . . . . . . . Wheels 1146 | 26 91 54 197 226 532 20 Hover . | . . . . . . . Flight 1 | . . . . . 1 . Fastest Speed 50 | 50 90 90 90 80 50 50 Average Speed 119 | 74 90 90 98 104 106 154 Slowest Speed 650 | 90 90 90 250 450 650 350 Overloaded Moves . | . . . . . . . Propulsion Burnouts . | . . . . . . . Robots Hopped . | . . . . . . . Potential Cave-ins . | . . . . . . . Cave-ins Triggered . | . . . . . . . Exploration Rate (%) 22 | 4 24 8 50 27 21 20 Regions Visited 6 Branch Regions 1 Pre-discovered Areas . | . . . . . . . Known Exits Taken . | . . . . . . . Unknown Exits Taken 6 | 1 1 1 1 1 1 . Scrap Searched 1 | . . . 1 . . . Spaces Dug . | . . . . . . . Terrain Destroyed 189 | . . . . . 159 30 Melee . | . . . . . . . Projectile 8 | . . . . . 2 6 AOE 181 | . . . . . 157 24 Terrain Rammed . | . . . . . . . Walls Destroyed . | . . . . . . . Machines Disabled . | . . . . . . . Actions | -11 -10 -9 -9 -8 -7 -6 --------- Run | Yrd Mat Mat Min Mat Fac Fac Total 2903 | 53 117 64 861 357 703 748 Wait 792 | . 5 . 625 40 73 49 Move 1821 | 41 90 53 199 239 570 629 Hop . | . . . . . . . Pick Up 63 | 6 5 6 4 16 14 12 Fast Attach 5 | . . . . . . 5 Attach 52 | 6 1 2 4 15 12 12 Detach 5 | . . . . 2 3 . Swap 16 | . 4 2 4 2 4 . Drop 16 | . 2 1 2 2 6 3 Fire 122 | . 10 . 23 41 21 27 Melee . | . . . . . . . Ram 11 | . . . . . . 11 Kick . | . . . . . . . Crush . | . . . . . . . Escape Stasis . | . . . . . . . Rewire . | . . . . . . . Trap . | . . . . . . . Miscellaneous . | . . . . . . . Route ------- -11/Scrapyard -10/Materials -9/Materials -9/Mines -8/Materials -7/Factory -6/Factory History --------- Turn | Location | Event 27 | -11/Scrapyard | Discovered new exit (range 12) 44 | -11/Scrapyard | Entered Materials 131 | -10/Materials | Discovered new exit (range 11) 174 | -10/Materials | Entered another Materials area 174 | -9/Materials | Evolved 2 slots: Utility x2 202 | -9/Materials | Discovered new exit (range 15) 234 | -9/Materials | Entered Mines 314 | -9/Mines | Build established: Mutant 1004 | -9/Mines | Assembled infested the area 1060 | -9/Mines | Lost 5 parts (2n2u1w) 1128 | -9/Mines | Discovered new exit (range 8) 1139 | -9/Mines | Entered Materials 1139 | -8/Materials | Evolved 2 slots: Power x1, Propulsion x1 1159 | -8/Materials | Central database locked down 1212 | -8/Materials | Repaired Wheel+ 1361 | -8/Materials | Lost 8 parts (1p2n2u3w) 1452 | -8/Materials | Core integrity fell below 50% 1556 | -8/Materials | Discovered new exit (range 3) 1558 | -8/Materials | Entered Factory 1558 | -7/Factory | Evolved 2 slots: Utility x2 1854 | -7/Factory | Build established: Scavenger-Mutant 1969 | -7/Factory | Lost 3 parts (2p1w) 2231 | -7/Factory | Build established: Mutant 2287 | -7/Factory | Cargo convoy interrupted 2305 | -7/Factory | Core integrity fell below 50% 2310 | -7/Factory | Core integrity fell below 20% 2316 | -7/Factory | Discovered new exit (range 15) 2323 | -7/Factory | Entered another Factory area 2323 | -6/Factory | Evolved 2 slots: Propulsion x1, Weapon x1 2333 | -6/Factory | Lost 7 parts (1p3n1u2w) 2883 | -6/Factory | Build established: Gunner 3319 | -6/Factory | Lost 7 parts (1p1n3u2w) 3368 | -6/Factory | Lost 5 parts (1p2n1u1w) 3427 | -6/Factory | Core integrity fell below 50% 3458 | -6/Factory | Core integrity fell below 20% 3464 | -6/Factory | Destroyed by Y-54 Guardian with Gatling Laser Last Messages --------------- K-01 Serf destroyed. Com. Wheel+ destroyed. Dropped Proton Cannon. R-10 Processor suffers critical hit (Burn). Dropped Lrg. Storage Unit. R-10 Processor collects Sml. Matter Pod. Slammed into A-15 Conveyor. [Achievement: For Emergencies Only] Slammed into A-15 Conveyor. Destabilizing: System corrupted (+1). Slammed into A-15 Conveyor. System corrupted: Heat flow error (+265). System corrupted: Matter fused (-7). Critical hit (Burn: +37). U-05 Engineer works on Matter Pump. U-05 Engineer works on Manufacturing Mainframe. T-07 Excavator is excavating. 78LUAD5XP&G:/DQRIVS8OA Slammed into G-50 Soldier. Slammed into Y-54 Guardian. Map ----- +----------------------------------------------------+ | ?????????????????????????????????????????????????? | | ?????????????????????????????????????????????????? | | ?????????????????????????????????????????????????? | | ?????????????????????????????????????????????????? | | ?????????????????????????????????????????????????? | | ?????????????????????????????????????????????????? | | ?????????????????????????????????????????????????? | | ?????????????????????????????????????????????????? | | ?????????????????????????????????????????????????? | | ?????????????????????????????????????????????????? | | ####?????????????????????????????????????????????? | | T #?????????????????????????????????????????????? | | #?????????????????????????????????????????????? | | ##????????????????????????????????????????????? | | #????????????????????????????????????????????? | | #?????????????????????????????????????????????? | | #?????????????????????????????????????????????? | | #???????########??????????????????????????????? | | ########???# #??????????????????????????????? | | # #???# #??###?????????????????????????? | | # #???# """ #?? ?????????????????????????? | | # #???# """ #??# #?????????????????????????? | | # #???# """ =#??# #?????????????????????????? | | + " #???# ####k###???????????????????????? | | # ########/#### ##### k #?????????????? | | #####+## ### ### @ #?????????????? | | " " g%pY #?????????????? | | ## ### t### #?????????????? | | #########+#### ##### #?????????????? | | #???# ###+###????? ##?????????????? | | ???# """#????????????? #??????????????? | | ???# """#??????????????+??????????????? | | ???+ """#?????????????????????????????? | | ???# #?????????????????????????????? | | ???# """#?????????????????????????????? | | ### ???# """#?????????????????????????????? | | ??# ???# """??????????????????????????????? | | ???# ???# ???????????????????????????????? | | ???? ???########???????????????????????????????? | | ???? ??????????????????????????????????????????? | | ???? ??????????????????????????????????????????? | | ?????????????????????????????????????????????????? | | ?????????????????????????????????????????????????? | | ?????????????????????????????????????????????????? | | ?????????????????????????????????????????????????? | | ?????????????????????????????????????????????????? | | ?????????????????????????????????????????????????? | | ?????????????????????????????????????????????????? | | ?????????????????????????????????????????????????? | | ?????????????????????????????????????????????????? | +----------------------------------------------------+ Best States ------------- Heat Dissipation 62 Energy Generation 23 Energy Capacity 300 Matter Stores 300 Matter Capacity 450 Sight Range 16 Robot Scan Range 15 Terrain Scan Density 10 ECM Strength 1 Armor Coverage 600 Utility Shielding 66 Evasion (%) 50 Recoil Reduction 4 Offensive Hacking 10 Item Schematics ----------------- Heat Sink | -8/Materials | Scanalyzed Robot Schematics ------------------ None Fabricated ------------ Nothing Repaired ---------- Wheel | 27% | -8/Materials Studied --------- Particle Gun | -8/Materials | Hacked Wheel | -8/Materials | Hacked Com. Wheel | -8/Materials | Hacked Alien Tech Used ----------------- None Achievements -------------- For Emergencies Only Item+ Jackpot Challenges ------------ None Game ------ Seed ArcPhasingModule Manual? 0 Play Time 00:30:24 Cumulative 33.1 hours Start 2026.01.09 @ 21:59:41 End 2026.01.09 @ 22:26:12 Sessions 1 Manual Loads 0 Difficulty Rogue Special Mode None Game No. 64 Rogue 43 Adventurer 21 Explorer 0 Win Type - Total 1 Types 0/0/0/0/0/0/0/1/0/0 Lore% 56 Gallery% 34 Achievement% 26 Wizard Run 0 Options --------- Layout 1 ASCII 0 Keyboard 0 Movement Mouse Keybinds 0 Fullscreen 2 Font 24/Smallcaps Map View 50x35 Zoom Use 0% Tactical HUD 0 Map Filters NONE Filters NONE Steam 1 RUN: eb3dba83-5674-4ab1-b812-e24c9136922d